[Event "*** Titled Tuesday Blitz"]
[Site "Chess.com"]
[Date "2021.04.06"]
[Round "8"]
[White "GadimbayliA"]
[Black "Fighter008"]
[Result "0-1"]
[WhiteElo "2773"]
[BlackElo "2628"]
[TimeControl "180+1"]
[EndTime "11:29:17 PDT"]
[Termination "Fighter008 won on time"]

1. e4 {[%clk 0:02:41.2]} 1... c5 {[%clk 0:02:55.9]} 2. Nf3 {[%clk 0:02:40.3]}
2... d6 {[%clk 0:02:55.4]} 3. d4 {[%clk 0:02:40.2]} 3... cxd4 {[%clk 0:02:56.3]}
4. Nxd4 {[%clk 0:02:41.1]} 4... Nf6 {[%clk 0:02:55.7]} 5. Nc3 {[%clk 0:02:41.7]}
5... a6 {[%clk 0:02:55.9]} 6. g3 {[%clk 0:02:42.3]} 6... e5 {[%clk 0:02:53.2]}
7. Nf3 {[%clk 0:02:42.8]} 7... Be7 {[%clk 0:02:51.9]} 8. Bg2 {[%clk 0:02:42.7]}
8... O-O {[%clk 0:02:51.9]} 9. O-O {[%clk 0:02:43.3]} 9... h6 {[%clk 0:02:48.2]}
10. Nh4 {[%clk 0:02:43.1]} 10... Nc6 {[%clk 0:02:43.1]} 11. Nf5 {[%clk
0:02:42.8]} 11... Bxf5 {[%clk 0:02:41]} 12. exf5 {[%clk 0:02:43.7]} 12... Nd4
{[%clk 0:02:39.8]} 13. f4 {[%clk 0:02:44.3]} 13... Qb6 {[%clk 0:02:35.5]} 14.
Kh1 {[%clk 0:02:40.5]} 14... Rfe8 {[%clk 0:02:33.2]} 15. Rb1 {[%clk 0:02:36.2]}
15... Qc7 {[%clk 0:01:54.2]} 16. Qd3 {[%clk 0:02:32.3]} 16... Bf8 {[%clk
0:01:50.7]} 17. Be3 {[%clk 0:02:30.4]} 17... Nc6 {[%clk 0:01:50.8]} 18. a3
{[%clk 0:02:27.6]} 18... Rad8 {[%clk 0:01:46.7]} 19. Nd5 {[%clk 0:02:21.3]}
19... Nxd5 {[%clk 0:01:46.1]} 20. Bxd5 {[%clk 0:02:22.2]} 20... Ne7 {[%clk
0:01:39.4]} 21. Bg2 {[%clk 0:01:32.1]} 21... Nc6 {[%clk 0:01:34.6]} 22. f6
{[%clk 0:01:18.5]} 22... d5 {[%clk 0:01:17.1]} 23. fxg7 {[%clk 0:01:13.3]} 23...
Bxg7 {[%clk 0:01:18]} 24. fxe5 {[%clk 0:01:11]} 24... Nxe5 {[%clk 0:01:18]} 25.
Qd1 {[%clk 0:01:05.1]} 25... Nc4 {[%clk 0:01:12.5]} 26. Bf4 {[%clk 0:00:36.6]}
26... Qc6 {[%clk 0:01:04.8]} 27. c3 {[%clk 0:00:36.2]} 27... Ne3 {[%clk
0:01:01]} 28. Bxe3 {[%clk 0:00:36.3]} 28... Rxe3 {[%clk 0:01:01.9]} 29. Qd2
{[%clk 0:00:36.9]} 29... Re5 {[%clk 0:00:59.9]} 30. Qf4 {[%clk 0:00:34.8]} 30...
Qg6 {[%clk 0:00:52.4]} 31. Rbd1 {[%clk 0:00:33]} 31... b5 {[%clk 0:00:47.4]} 32.
Rd2 {[%clk 0:00:30.2]} 32... Rd6 {[%clk 0:00:45.8]} 33. Qb4 {[%clk 0:00:28]}
33... h5 {[%clk 0:00:35.9]} 34. Rfd1 {[%clk 0:00:25.3]} 34... Bh6 {[%clk
0:00:29.6]} 35. Rxd5 {[%clk 0:00:16]} 35... Rdxd5 {[%clk 0:00:28.2]} 36. Bxd5
{[%clk 0:00:16]} 36... Qc2 {[%clk 0:00:25.6]} 37. Bb3 {[%clk 0:00:14.8]} 37...
Qf2 {[%clk 0:00:24.1]} 38. Rd8+ {[%clk 0:00:07.8]} 38... Kh7 {[%clk 0:00:21.8]}
0-1

[Event "*** Titled Tuesday Blitz"]
[Site "Chess.com"]
[Date "2021.04.06"]
[Round "8"]
[White "PowerThinking2650"]
[Black "secretsuperstar7"]
[Result "1-0"]
[WhiteElo "2382"]
[BlackElo "2187"]
[TimeControl "180+1"]
[EndTime "11:29:17 PDT"]
[Termination "PowerThinking2650 won on time"]

1. e4 {[%clk 0:03:00.9]} 1... c5 {[%clk 0:02:59.1]} 2. Nf3 {[%clk 0:03:00.7]}
2... d6 {[%clk 0:02:58.7]} 3. d4 {[%clk 0:03:01.2]} 3... cxd4 {[%clk 0:02:58.6]}
4. Nxd4 {[%clk 0:03:02.1]} 4... Nf6 {[%clk 0:02:58.5]} 5. Nc3 {[%clk 0:03:02.6]}
5... Nc6 {[%clk 0:02:58.3]} 6. Bc4 {[%clk 0:03:02.8]} 6... e6 {[%clk 0:02:57.7]}
7. Be3 {[%clk 0:03:02.3]} 7... a6 {[%clk 0:02:52.2]} 8. Qe2 {[%clk 0:03:01.6]}
8... Be7 {[%clk 0:02:46.5]} 9. O-O-O {[%clk 0:03:00.8]} 9... Bd7 {[%clk
0:02:45.3]} 10. Bb3 {[%clk 0:02:57.2]} 10... b5 {[%clk 0:02:43.1]} 11. g4 {[%clk
0:02:53.8]} 11... b4 {[%clk 0:02:33.5]} 12. Na4 {[%clk 0:02:50.2]} 12... Rb8
{[%clk 0:01:28.9]} 13. f3 {[%clk 0:01:43.7]} 13... Nxd4 {[%clk 0:01:16.3]} 14.
Bxd4 {[%clk 0:01:24.4]} 14... Qa5 {[%clk 0:01:15.5]} 15. Nc3 {[%clk 0:01:18.4]}
15... bxc3 {[%clk 0:01:09.5]} 16. Bxc3 {[%clk 0:01:19.3]} 16... Qc7 {[%clk
0:00:48.4]} 17. e5 {[%clk 0:01:19.1]} 17... Nd5 {[%clk 0:00:25.3]} 18. Bxd5
{[%clk 0:01:02.5]} 18... exd5 {[%clk 0:00:23.6]} 19. exd6 {[%clk 0:01:00]} 19...
Qxd6 {[%clk 0:00:23.3]} 20. Bxg7 {[%clk 0:00:49.6]} 20... Rg8 {[%clk 0:00:22.5]}
21. Be5 {[%clk 0:00:44.7]} 21... Qh6+ {[%clk 0:00:17.2]} 22. Kb1 {[%clk
0:00:44.7]} 22... Rb6 {[%clk 0:00:14.6]} 23. Rxd5 {[%clk 0:00:36.6]} 23... Qe6
{[%clk 0:00:13.8]} 24. Qd2 {[%clk 0:00:20.6]} 24... Bc6 {[%clk 0:00:11.9]} 25.
Ra5 {[%clk 0:00:14.8]} 25... Bb5 {[%clk 0:00:05.9]} 26. Re1 {[%clk 0:00:12.1]}
26... Bg5 {[%clk 0:00:04.2]} 27. f4 {[%clk 0:00:11.2]} 27... Be7 {[%clk
0:00:03.6]} 28. Bc3 {[%clk 0:00:10.6]} 28... Qg6 {[%clk 0:00:02]} 29. h3 {[%clk
0:00:10.1]} 29... Qc6 {[%clk 0:00:01.7]} 30. f5 {[%clk 0:00:09.4]} 30... Kf8
{[%clk 0:00:02]} 31. Qe3 {[%clk 0:00:09]} 31... Bc5 {[%clk 0:00:01.6]} 32. Qf4
{[%clk 0:00:05.4]} 32... Rb7 {[%clk 0:00:01.5]} 33. f6 {[%clk 0:00:04.6]} 1-0

[Event "*** Titled Tuesday Blitz"]
[Site "Chess.com"]
[Date "2021.04.06"]
[Round "8"]
[White "Andreikka"]
[Black "GelmanAlexander"]
[Result "1-0"]
[WhiteElo "2866"]
[BlackElo "2655"]
[TimeControl "180+1"]
[EndTime "11:29:18 PDT"]
[Termination "Andreikka won on time"]

1. d4 {[%clk 0:02:47.6]} 1... Nf6 {[%clk 0:02:35.8]} 2. Nc3 {[%clk 0:02:40.3]}
2... d5 {[%clk 0:02:34.1]} 3. Bf4 {[%clk 0:02:40.8]} 3... a6 {[%clk 0:02:31.2]}
4. e3 {[%clk 0:02:40.8]} 4... b5 {[%clk 0:02:30.4]} 5. h4 {[%clk 0:02:39]} 5...
e6 {[%clk 0:02:28.2]} 6. g4 {[%clk 0:02:37.5]} 6... Bb7 {[%clk 0:02:25.8]} 7. g5
{[%clk 0:02:35.1]} 7... Nfd7 {[%clk 0:02:25.8]} 8. Nce2 {[%clk 0:02:33.5]} 8...
c5 {[%clk 0:02:24.9]} 9. c3 {[%clk 0:02:33.7]} 9... Nc6 {[%clk 0:02:23.8]} 10.
Nf3 {[%clk 0:02:33.8]} 10... Qb6 {[%clk 0:02:16.3]} 11. h5 {[%clk 0:02:33.6]}
11... Be7 {[%clk 0:02:13.4]} 12. Bh3 {[%clk 0:02:33.4]} 12... g6 {[%clk
0:02:09.3]} 13. a3 {[%clk 0:02:29.7]} 13... a5 {[%clk 0:01:58.9]} 14. Bg4 {[%clk
0:02:26.6]} 14... Rf8 {[%clk 0:01:48.8]} 15. hxg6 {[%clk 0:02:18]} 15... hxg6
{[%clk 0:01:48.3]} 16. Bg3 {[%clk 0:02:04.9]} 16... b4 {[%clk 0:01:39.1]} 17.
axb4 {[%clk 0:02:02.6]} 17... cxb4 {[%clk 0:01:36.4]} 18. O-O {[%clk 0:01:57.7]}
18... Rh8 {[%clk 0:01:26.6]} 19. Nf4 {[%clk 0:01:57.4]} 19... Na7 {[%clk
0:01:04.8]} 20. Qc2 {[%clk 0:01:52.4]} 20... Rg8 {[%clk 0:00:57.2]} 21. Rfe1
{[%clk 0:01:46.7]} 21... Nb5 {[%clk 0:00:56.8]} 22. Rac1 {[%clk 0:01:24.4]}
22... Nd6 {[%clk 0:00:51.2]} 23. cxb4 {[%clk 0:01:24.3]} 23... axb4 {[%clk
0:00:42]} 24. Nd3 {[%clk 0:00:50.7]} 24... Ne4 {[%clk 0:00:37.5]} 25. Bf4 {[%clk
0:00:50.8]} 25... Bd6 {[%clk 0:00:34]} 26. Nde5 {[%clk 0:00:44.5]} 26... Nxe5
{[%clk 0:00:30.9]} 27. Nxe5 {[%clk 0:00:45.4]} 27... Ke7 {[%clk 0:00:29.4]} 28.
f3 {[%clk 0:00:42.9]} 28... Rgc8 {[%clk 0:00:16.2]} 29. Qg2 {[%clk 0:00:35.5]}
29... Rxc1 {[%clk 0:00:13.2]} 30. Rxc1 {[%clk 0:00:34.9]} 30... Bxe5 {[%clk
0:00:13.4]} 31. Bxe5 {[%clk 0:00:34.3]} 31... Nd6 {[%clk 0:00:13.8]} 32. Qh2
{[%clk 0:00:28.8]} 32... Kd7 {[%clk 0:00:12.2]} 33. b3 {[%clk 0:00:26.6]} 33...
Rc8 {[%clk 0:00:12]} 34. Rxc8 {[%clk 0:00:25.1]} 34... Bxc8 {[%clk 0:00:11.8]}
35. Qh8 {[%clk 0:00:25.4]} 35... Qc6 {[%clk 0:00:09.3]} 36. Qf8 {[%clk
0:00:23.8]} 36... Qc1+ {[%clk 0:00:05.4]} 37. Kh2 {[%clk 0:00:24.2]} 37... Qd2+
{[%clk 0:00:04.1]} 38. Kh3 {[%clk 0:00:24.8]} 38... Nf5 {[%clk 0:00:04.3]} 39.
Bxf5 {[%clk 0:00:23.2]} 39... gxf5 {[%clk 0:00:03.2]} 40. Qd6+ {[%clk
0:00:22.7]} 40... Ke8 {[%clk 0:00:03]} 41. Bf6 {[%clk 0:00:23.2]} 1-0

[Event "*** Titled Tuesday Blitz"]
[Site "Chess.com"]
[Date "2021.04.06"]
[Round "8"]
[White "Aleksey_Sorokin"]
[Black "Alexander_Zubov"]
[Result "1-0"]
[WhiteElo "2807"]
[BlackElo "2975"]
[TimeControl "180+1"]
[EndTime "11:29:19 PDT"]
[Termination "Aleksey_Sorokin won by resignation"]

1. d4 {[%clk 0:03:00.9]} 1... Nf6 {[%clk 0:02:59.3]} 2. c4 {[%clk 0:03:01.2]}
2... e6 {[%clk 0:02:59.6]} 3. Nf3 {[%clk 0:03:01.6]} 3... b6 {[%clk 0:02:59.4]}
4. a3 {[%clk 0:03:01.5]} 4... Bb7 {[%clk 0:02:58.1]} 5. Nc3 {[%clk 0:03:01.6]}
5... d5 {[%clk 0:02:57.7]} 6. cxd5 {[%clk 0:03:02.5]} 6... Nxd5 {[%clk
0:02:57.3]} 7. Qc2 {[%clk 0:03:02.8]} 7... Nxc3 {[%clk 0:02:52.7]} 8. bxc3
{[%clk 0:03:03.7]} 8... Be7 {[%clk 0:02:52.4]} 9. e4 {[%clk 0:03:03.9]} 9... O-O
{[%clk 0:02:52.8]} 10. Bd3 {[%clk 0:03:04.1]} 10... c5 {[%clk 0:02:52]} 11. O-O
{[%clk 0:03:04.8]} 11... cxd4 {[%clk 0:02:48.6]} 12. cxd4 {[%clk 0:03:04.6]}
12... Nd7 {[%clk 0:02:49]} 13. Rd1 {[%clk 0:03:00.9]} 13... Rc8 {[%clk
0:02:45.3]} 14. Qe2 {[%clk 0:03:01.1]} 14... Qc7 {[%clk 0:02:39.2]} 15. Bd2
{[%clk 0:03:01.2]} 15... Rfd8 {[%clk 0:02:34.4]} 16. a4 {[%clk 0:03:01.4]} 16...
a5 {[%clk 0:02:17.4]} 17. h3 {[%clk 0:02:56.8]} 17... Nf6 {[%clk 0:02:07.2]} 18.
Rdb1 {[%clk 0:02:56.6]} 18... Bc6 {[%clk 0:02:01.4]} 19. Bg5 {[%clk 0:02:45.8]}
19... h6 {[%clk 0:01:34.4]} 20. Bh4 {[%clk 0:02:37.9]} 20... Qa7 {[%clk
0:01:23.2]} 21. Rc1 {[%clk 0:02:30.5]} 21... Qa8 {[%clk 0:01:21]} 22. d5 {[%clk
0:02:03.1]} 22... exd5 {[%clk 0:00:59.7]} 23. exd5 {[%clk 0:02:03.1]} 23... Nxd5
{[%clk 0:00:59.5]} 24. Bxe7 {[%clk 0:01:58.1]} 24... Re8 {[%clk 0:00:59.7]} 25.
Qe4 {[%clk 0:01:50.3]} 25... g6 {[%clk 0:00:59.6]} 26. Ne5 {[%clk 0:01:34.2]}
26... Nxe7 {[%clk 0:00:52.1]} 27. Qf4 {[%clk 0:01:32.3]} 27... Bd5 {[%clk
0:00:44.3]} 28. Nd7 {[%clk 0:01:14.1]} 28... Rxc1+ {[%clk 0:00:25.5]} 29. Rxc1
{[%clk 0:01:13.5]} 29... Rc8 {[%clk 0:00:24.2]} 30. Nf6+ {[%clk 0:01:02]} 30...
Kg7 {[%clk 0:00:22.7]} 31. Rxc8 {[%clk 0:01:02]} 31... Qxc8 {[%clk 0:00:21.5]}
32. Qe5 {[%clk 0:00:59.8]} 32... Qe6 {[%clk 0:00:12]} 33. Nh5+ {[%clk
0:00:50.3]} 33... Kf8 {[%clk 0:00:12.5]} 34. Qg7+ {[%clk 0:00:50.5]} 34... Ke8
{[%clk 0:00:12.5]} 35. Nf6+ {[%clk 0:00:51.1]} 35... Kd8 {[%clk 0:00:13]} 36.
Qf8+ {[%clk 0:00:51.2]} 36... Kc7 {[%clk 0:00:13.4]} 37. Qxe7+ {[%clk
0:00:51.7]} 37... Qxe7 {[%clk 0:00:10.8]} 38. Nxd5+ {[%clk 0:00:52]} 38... Kd6
{[%clk 0:00:11.4]} 39. Nxe7 {[%clk 0:00:52.2]} 39... Kxe7 {[%clk 0:00:12.3]} 40.
Bb5 {[%clk 0:00:52.3]} 40... Kd6 {[%clk 0:00:12.2]} 41. g3 {[%clk 0:00:52.5]}
41... g5 {[%clk 0:00:12.8]} 42. Kg2 {[%clk 0:00:52.9]} 42... Ke5 {[%clk
0:00:13.4]} 43. Kf3 {[%clk 0:00:53.1]} 43... f5 {[%clk 0:00:14.3]} 44. g4 {[%clk
0:00:53]} 44... f4 {[%clk 0:00:14.4]} 45. Kg2 {[%clk 0:00:52.6]} 45... Kd4
{[%clk 0:00:15.3]} 46. Be8 {[%clk 0:00:51.7]} 46... Kd3 {[%clk 0:00:15.4]} 47.
Kf3 {[%clk 0:00:51.4]} 47... Kd4 {[%clk 0:00:15.7]} 48. h4 {[%clk 0:00:50.9]}
48... Kd3 {[%clk 0:00:15.2]} 49. hxg5 {[%clk 0:00:50.1]} 49... hxg5 {[%clk
0:00:16.1]} 50. Bc6 {[%clk 0:00:49.2]} 50... Kd4 {[%clk 0:00:15.9]} 51. Ke2
{[%clk 0:00:49.5]} 51... Kc4 {[%clk 0:00:14.8]} 52. f3 {[%clk 0:00:48.9]} 52...
Kc3 {[%clk 0:00:15.2]} 53. Be8 {[%clk 0:00:48.3]} 53... Kc2 {[%clk 0:00:15.2]}
54. Bb5 {[%clk 0:00:45.7]} 54... Kc3 {[%clk 0:00:15.3]} 55. Kd1 {[%clk 0:00:46]}
55... Kd4 {[%clk 0:00:11.7]} 56. Kd2 {[%clk 0:00:46.1]} 56... Ke5 {[%clk
0:00:11.7]} 57. Kc3 {[%clk 0:00:45.8]} 57... Kd5 {[%clk 0:00:12.6]} 58. Kd3
{[%clk 0:00:46]} 58... Ke5 {[%clk 0:00:12.2]} 59. Kc4 {[%clk 0:00:46.3]} 1-0

[Event "*** Titled Tuesday Blitz"]
[Site "Chess.com"]
[Date "2021.04.06"]
[Round "8"]
[White "schondeln"]
[Black "Grineva_Marianna"]
[Result "1-0"]
[WhiteElo "2385"]
[BlackElo "2251"]
[TimeControl "180+1"]
[EndTime "11:29:19 PDT"]
[Termination "schondeln won by checkmate"]

1. e4 {[%clk 0:03:00.9]} 1... c5 {[%clk 0:02:56.3]} 2. Nf3 {[%clk 0:03:00.4]}
2... d6 {[%clk 0:02:56]} 3. Bc4 {[%clk 0:03:00.2]} 3... Nf6 {[%clk 0:02:53.6]}
4. d3 {[%clk 0:03:00.4]} 4... e6 {[%clk 0:02:53.3]} 5. O-O {[%clk 0:02:59.8]}
5... Be7 {[%clk 0:02:53.8]} 6. Bb3 {[%clk 0:02:58.9]} 6... O-O {[%clk
0:02:54.1]} 7. c3 {[%clk 0:02:59.3]} 7... Nc6 {[%clk 0:02:53.3]} 8. Nbd2 {[%clk
0:02:59.4]} 8... b5 {[%clk 0:02:47.8]} 9. Re1 {[%clk 0:02:59.4]} 9... Bb7 {[%clk
0:02:47.4]} 10. d4 {[%clk 0:02:53.8]} 10... cxd4 {[%clk 0:02:42.6]} 11. cxd4
{[%clk 0:02:54.7]} 11... e5 {[%clk 0:02:30.8]} 12. d5 {[%clk 0:02:48.2]} 12...
Nb4 {[%clk 0:02:28.4]} 13. Nf1 {[%clk 0:02:45.7]} 13... a5 {[%clk 0:02:20.5]}
14. a3 {[%clk 0:02:28.5]} 14... a4 {[%clk 0:02:19.5]} 15. axb4 {[%clk 0:02:25]}
15... axb3 {[%clk 0:02:17.2]} 16. Rxa8 {[%clk 0:02:25.5]} 16... Qxa8 {[%clk
0:02:13.2]} 17. Qxb3 {[%clk 0:02:26.1]} 17... Bd8 {[%clk 0:02:02.5]} 18. Ng3
{[%clk 0:02:20.5]} 18... Bb6 {[%clk 0:01:55.8]} 19. Be3 {[%clk 0:02:19.2]} 19...
Qa7 {[%clk 0:01:54.6]} 20. Bxb6 {[%clk 0:01:41]} 20... Qxb6 {[%clk 0:01:55.5]}
21. Qe3 {[%clk 0:01:41.3]} 21... Qxe3 {[%clk 0:01:44.7]} 22. Rxe3 {[%clk
0:01:40.8]} 22... Ra8 {[%clk 0:01:44.8]} 23. Ra3 {[%clk 0:01:40.6]} 23... Rc8
{[%clk 0:01:36.6]} 24. Rc3 {[%clk 0:01:40.5]} 24... Rc4 {[%clk 0:01:32]} 25. h3
{[%clk 0:01:20.5]} 25... g6 {[%clk 0:01:21.1]} 26. Rxc4 {[%clk 0:01:17.3]} 26...
bxc4 {[%clk 0:01:19.8]} 27. Nd2 {[%clk 0:01:13.6]} 27... Ba6 {[%clk 0:01:17.8]}
28. Ne2 {[%clk 0:01:12.8]} 28... Kf8 {[%clk 0:01:10.8]} 29. Nc3 {[%clk
0:01:12.8]} 29... Nd7 {[%clk 0:00:58.6]} 30. b5 {[%clk 0:01:13]} 30... Bc8
{[%clk 0:00:57.7]} 31. Nxc4 {[%clk 0:01:13.2]} 31... Ke7 {[%clk 0:00:56.2]} 32.
f3 {[%clk 0:01:09.7]} 32... Nc5 {[%clk 0:00:55.8]} 33. Kf2 {[%clk 0:01:06.1]}
33... Bd7 {[%clk 0:00:53.5]} 34. Ke3 {[%clk 0:01:06.4]} 34... Nb7 {[%clk
0:00:51.5]} 35. b4 {[%clk 0:01:02.2]} 35... f6 {[%clk 0:00:49.2]} 36. h4 {[%clk
0:01:01]} 36... h5 {[%clk 0:00:49.2]} 37. g3 {[%clk 0:01:00.3]} 37... Bh3 {[%clk
0:00:46]} 38. Na5 {[%clk 0:00:58.8]} 38... Bc8 {[%clk 0:00:38.4]} 39. b6 {[%clk
0:00:56.7]} 39... Nxa5 {[%clk 0:00:28.7]} 40. bxa5 {[%clk 0:00:56.6]} 40... Ba6
{[%clk 0:00:28.9]} 41. Nb5 {[%clk 0:00:52.8]} 41... Kd7 {[%clk 0:00:27.6]} 42.
Nc7 {[%clk 0:00:51.6]} 42... Bc8 {[%clk 0:00:27.7]} 43. a6 {[%clk 0:00:51]}
43... g5 {[%clk 0:00:21.5]} 44. a7 {[%clk 0:00:48.3]} 44... Bb7 {[%clk
0:00:21.1]} 45. a8=Q {[%clk 0:00:48.6]} 45... Bxa8 {[%clk 0:00:21.4]} 46. Nxa8
{[%clk 0:00:48.9]} 46... Kc8 {[%clk 0:00:21.8]} 47. Nc7 {[%clk 0:00:47.9]} 47...
Kb7 {[%clk 0:00:20.4]} 48. Ne8 {[%clk 0:00:48]} 48... Kxb6 {[%clk 0:00:20.9]}
49. Nxf6 {[%clk 0:00:47.4]} 49... Kc7 {[%clk 0:00:20.1]} 50. Nxh5 {[%clk
0:00:47.3]} 50... gxh4 {[%clk 0:00:20]} 51. gxh4 {[%clk 0:00:47.2]} 51... Kd7
{[%clk 0:00:20.6]} 52. Ng3 {[%clk 0:00:47.4]} 52... Ke7 {[%clk 0:00:20.8]} 53.
Nf5+ {[%clk 0:00:48.3]} 53... Kd7 {[%clk 0:00:21.1]} 54. h5 {[%clk 0:00:48.7]}
54... Ke8 {[%clk 0:00:21.6]} 55. h6 {[%clk 0:00:49.6]} 55... Kf7 {[%clk
0:00:22.1]} 56. Kf2 {[%clk 0:00:49.5]} 56... Kg6 {[%clk 0:00:23]} 57. Kg3 {[%clk
0:00:50.2]} 57... Kh7 {[%clk 0:00:22.6]} 58. Kg4 {[%clk 0:00:50.4]} 58... Kg6
{[%clk 0:00:23.1]} 59. Kh4 {[%clk 0:00:50.4]} 59... Kh7 {[%clk 0:00:23.3]} 60.
Kg5 {[%clk 0:00:50.8]} 60... Kg8 {[%clk 0:00:24]} 61. Kg6 {[%clk 0:00:51.1]}
61... Kh8 {[%clk 0:00:24]} 62. Nxd6 {[%clk 0:00:51.4]} 62... Kg8 {[%clk
0:00:23.8]} 63. Nc4 {[%clk 0:00:52.3]} 63... Kh8 {[%clk 0:00:23.5]} 64. Nxe5
{[%clk 0:00:53.2]} 64... Kg8 {[%clk 0:00:24.3]} 65. f4 {[%clk 0:00:53.2]} 65...
Kh8 {[%clk 0:00:24.5]} 66. Ng4 {[%clk 0:00:54.1]} 66... Kg8 {[%clk 0:00:24.8]}
67. f5 {[%clk 0:00:55]} 67... Kh8 {[%clk 0:00:24.9]} 68. e5 {[%clk 0:00:55.9]}
68... Kg8 {[%clk 0:00:25.1]} 69. d6 {[%clk 0:00:56.8]} 69... Kh8 {[%clk
0:00:25.5]} 70. d7 {[%clk 0:00:57.7]} 70... Kg8 {[%clk 0:00:25.9]} 71. d8=Q#
{[%clk 0:00:58.6]} 1-0

[Event "*** Titled Tuesday Blitz"]
[Site "Chess.com"]
[Date "2021.04.06"]
[Round "8"]
[White "DKmirl"]
[Black "TioCridineno"]
[Result "0-1"]
[WhiteElo "1932"]
[BlackElo "2265"]
[TimeControl "180+1"]
[EndTime "11:29:21 PDT"]
[Termination "TioCridineno won by checkmate"]

1. d4 {[%clk 0:03:00.9]} 1... Nf6 {[%clk 0:02:59.6]} 2. c4 {[%clk 0:03:00.6]}
2... g6 {[%clk 0:02:59.8]} 3. Nf3 {[%clk 0:03:00.9]} 3... Bg7 {[%clk 0:03:00.2]}
4. g3 {[%clk 0:03:01.5]} 4... O-O {[%clk 0:03:00.6]} 5. Bg2 {[%clk 0:03:02.1]}
5... d6 {[%clk 0:03:00.3]} 6. O-O {[%clk 0:03:02.3]} 6... Nc6 {[%clk 0:03:00.6]}
7. Nc3 {[%clk 0:03:02.4]} 7... a6 {[%clk 0:03:00.5]} 8. b3 {[%clk 0:03:00]} 8...
Rb8 {[%clk 0:03:00.6]} 9. Bb2 {[%clk 0:02:59.1]} 9... b5 {[%clk 0:03:00.6]} 10.
cxb5 {[%clk 0:02:56.2]} 10... axb5 {[%clk 0:03:00.2]} 11. d5 {[%clk 0:02:55.2]}
11... Na5 {[%clk 0:02:59.7]} 12. Rb1 {[%clk 0:02:43.2]} 12... c5 {[%clk
0:02:59.1]} 13. dxc6 {[%clk 0:02:42.1]} 13... Nxc6 {[%clk 0:02:58.1]} 14. Nd2
{[%clk 0:02:35.7]} 14... Bd7 {[%clk 0:02:56.8]} 15. Nde4 {[%clk 0:02:28.7]}
15... Qb6 {[%clk 0:02:55.3]} 16. Nxf6+ {[%clk 0:02:26.3]} 16... exf6 {[%clk
0:02:51.7]} 17. Nd5 {[%clk 0:02:25.3]} 17... Qd8 {[%clk 0:02:50.7]} 18. Nf4
{[%clk 0:02:15.3]} 18... Bf5 {[%clk 0:02:48]} 19. e4 {[%clk 0:02:13.4]} 19...
Bc8 {[%clk 0:02:44.8]} 20. a3 {[%clk 0:01:33.7]} 20... Ne5 {[%clk 0:02:44.3]}
21. Nd5 {[%clk 0:01:29.1]} 21... Be6 {[%clk 0:02:41.6]} 22. f4 {[%clk
0:01:24.5]} 22... Bxd5 {[%clk 0:02:41.1]} 23. Qxd5 {[%clk 0:01:21.5]} 23... Ng4
{[%clk 0:02:41.1]} 24. Qd4 {[%clk 0:01:13.2]} 24... Qb6 {[%clk 0:02:34.2]} 25.
Qxb6 {[%clk 0:01:11.7]} 25... Rxb6 {[%clk 0:02:32.8]} 26. Bh3 {[%clk 0:00:59.6]}
26... h5 {[%clk 0:02:21.9]} 27. Bxg4 {[%clk 0:00:55.9]} 27... hxg4 {[%clk
0:02:20.6]} 28. Rfd1 {[%clk 0:00:55.9]} 28... Re8 {[%clk 0:02:20]} 29. Re1
{[%clk 0:00:43.9]} 29... Rc6 {[%clk 0:02:20.3]} 30. Re2 {[%clk 0:00:41.1]} 30...
f5 {[%clk 0:02:16.4]} 31. Bxg7 {[%clk 0:00:39.9]} 31... Kxg7 {[%clk 0:02:16.3]}
32. e5 {[%clk 0:00:29.3]} 32... dxe5 {[%clk 0:02:15]} 33. fxe5 {[%clk
0:00:28.5]} 33... Rce6 {[%clk 0:02:13]} 34. Rbe1 {[%clk 0:00:27.3]} 34... Rc8
{[%clk 0:02:11.9]} 35. Re3 {[%clk 0:00:24.3]} 35... Rc2 {[%clk 0:02:11.2]} 36.
R1e2 {[%clk 0:00:23.8]} 36... Rec6 {[%clk 0:02:11.3]} 37. Kf2 {[%clk 0:00:12.4]}
37... g5 {[%clk 0:02:11]} 38. e6 {[%clk 0:00:06.7]} 38... fxe6 {[%clk
0:02:10.1]} 39. Rxe6 {[%clk 0:00:06.3]} 39... Rxe2+ {[%clk 0:02:04]} 40. Rxe2
{[%clk 0:00:06.4]} 40... Kf6 {[%clk 0:02:03.7]} 41. Re3 {[%clk 0:00:06.6]} 41...
f4 {[%clk 0:02:02.8]} 42. gxf4 {[%clk 0:00:06.6]} 42... gxf4 {[%clk 0:02:03]}
43. Rd3 {[%clk 0:00:07]} 43... Rc5 {[%clk 0:02:01.7]} 44. Kg1 {[%clk 0:00:07.6]}
44... Kf5 {[%clk 0:02:01.7]} 45. Rd4 {[%clk 0:00:07.5]} 45... Ke5 {[%clk
0:01:58.6]} 46. Rb4 {[%clk 0:00:07.6]} 46... Kf5 {[%clk 0:01:53.5]} 47. a4
{[%clk 0:00:07.9]} 47... bxa4 {[%clk 0:01:53.1]} 48. bxa4 {[%clk 0:00:08.4]}
48... Rc1+ {[%clk 0:01:50.3]} 49. Kg2 {[%clk 0:00:08.4]} 49... Ra1 {[%clk
0:01:50.3]} 50. Rb5+ {[%clk 0:00:08.3]} 50... Kg6 {[%clk 0:01:50.6]} 51. Rb4
{[%clk 0:00:08]} 51... Kg5 {[%clk 0:01:50.8]} 52. Rb5+ {[%clk 0:00:08.6]} 52...
Kh4 {[%clk 0:01:51.2]} 53. Rb4 {[%clk 0:00:09]} 53... f3+ {[%clk 0:01:51.7]} 54.
Kf2 {[%clk 0:00:08.6]} 54... Ra2+ {[%clk 0:01:52]} 55. Kg1 {[%clk 0:00:08.6]}
55... Kh3 {[%clk 0:01:52.5]} 56. Rb8 {[%clk 0:00:04.7]} 56... Rg2+ {[%clk
0:01:51.9]} 57. Kf1 {[%clk 0:00:04.5]} 57... Rxh2 {[%clk 0:01:45.5]} 58. Rh8+
{[%clk 0:00:05.2]} 58... Kg3 {[%clk 0:01:45.9]} 59. Rxh2 {[%clk 0:00:05.6]}
59... Kxh2 {[%clk 0:01:46.3]} 60. a5 {[%clk 0:00:06.2]} 60... g3 {[%clk
0:01:46.9]} 61. a6 {[%clk 0:00:06.2]} 61... g2+ {[%clk 0:01:47.4]} 62. Kf2
{[%clk 0:00:04.1]} 62... g1=Q+ {[%clk 0:01:47.3]} 63. Kxf3 {[%clk 0:00:04.6]}
63... Qa7 {[%clk 0:01:47.9]} 64. Ke4 {[%clk 0:00:04.6]} 64... Qxa6 {[%clk
0:01:48.3]} 65. Kd4 {[%clk 0:00:04.5]} 65... Qb5 {[%clk 0:01:48.1]} 66. Kc3
{[%clk 0:00:03.8]} 66... Qa4 {[%clk 0:01:48]} 67. Kd3 {[%clk 0:00:03.8]} 67...
Qb4 {[%clk 0:01:47.8]} 68. Kc2 {[%clk 0:00:03.3]} 68... Qa3 {[%clk 0:01:47.7]}
69. Kb1 {[%clk 0:00:02.9]} 69... Kg2 {[%clk 0:01:46.2]} 70. Kc2 {[%clk
0:00:03.3]} 70... Kf3 {[%clk 0:01:46.5]} 71. Kd2 {[%clk 0:00:03.8]} 71... Qb3
{[%clk 0:01:44.8]} 72. Kc1 {[%clk 0:00:03.8]} 72... Qa2 {[%clk 0:01:44.7]} 73.
Kd1 {[%clk 0:00:03.6]} 73... Ke3 {[%clk 0:01:45]} 74. Kc1 {[%clk 0:00:04.2]}
74... Kd3 {[%clk 0:01:45.3]} 75. Kd1 {[%clk 0:00:04.9]} 75... Qd2# {[%clk
0:01:45.1]} 0-1